fUST/lending_fUST_20260127
["ID","MTS","AMOUNT","RATE_DAILY","PERIOD"]
[403725732,1769509846615,-230.007319,0.00019178,2]
[403725734,1769509846623,-230.007319,0.00019178,2]
[403725736,1769509846632,-230.007319,0.00019178,2]
[403725738,1769509846641,-230.007319,0.00019178,2]
[403725739,1769509846651,-230.007319,0.00019178,2]
[403725741,1769509846661,-151.0,0.00019178,2]
[403725743,1769509846670,-151.0,0.00019178,2]
[403725745,1769509846679,-151.0,0.00019178,2]
[403725747,1769509846690,-151.0,0.00019178,2]
[403725749,1769509846699,-151.0,0.00019178,2]
[403725751,1769509846709,-151.0,0.00019178,2]
[403725753,1769509846717,-151.0,0.00019178,2]
[403725754,1769509846726,-151.0,0.00019178,2]
[403725756,1769509846736,-151.0,0.00019178,2]
[403725758,1769509846746,-151.0,0.00019178,2]
[403725760,1769509846755,-151.0,0.00019178,2]
[403725762,1769509846764,-151.0,0.00019178,2]
[403725763,1769509846772,-789.365747,0.00019178,2]
[403725765,1769509846781,-151.0,0.00019178,2]
[403725767,1769509846791,-789.365747,0.00019178,2]
[403725769,1769509846800,-151.0,0.00019178,2]
[403725771,1769509846808,-789.365747,0.00019178,2]
[403725773,1769509846820,-151.0,0.00019178,2]
[403725775,1769509846828,-789.365747,0.00019178,2]
[403725777,1769509846838,-789.365747,0.00019178,2]
[403725778,1769509846847,-789.365747,0.00019178,2]
[403725780,1769509846856,-789.365747,0.00019178,2]
[403725782,1769509846865,-789.365747,0.00019178,2]
[403725784,1769509846874,-789.365747,0.00019178,2]
[403725786,1769509846883,-789.365747,0.00019178,2]
[403725788,1769509846892,-789.365747,0.00019178,2]
[403725790,1769509846900,-789.365747,0.00019178,2]
[403725791,1769509846909,-151.0,0.00019178,2]
[403725793,1769509846918,-151.0,0.00019178,2]
[403725795,1769509846928,-151.0,0.00019178,2]
[403725797,1769509846936,-151.0,0.00019178,2]
[403725799,1769509846946,-164.711152,0.00019178,2]
[403725801,1769509846955,-151.0,0.00019178,2]
[403725803,1769509846964,-151.0,0.00019178,2]
[403725805,1769509846974,-151.0,0.00019178,2]
[403725806,1769509846983,-151.0,0.00019178,2]
[403725808,1769509846992,-151.0,0.00019178,2]
[403725810,1769509847002,-261.497606,0.00019178,2]
[403725812,1769509847011,-151.0,0.00019178,2]
[403725814,1769509847020,-387.105087,0.00019178,2]
[403725816,1769509847029,-261.497606,0.00019178,2]
[403725818,1769509847037,-261.497606,0.00019178,2]
[403725819,1769509847046,-387.105087,0.00019178,2]
[403725821,1769509847055,-387.105087,0.00019178,2]
[403725823,1769509847064,-261.497606,0.00019178,2]
[403725825,1769509847073,-151.0,0.00019178,2]
[403725827,1769509847082,-151.0,0.00019178,2]
[403725829,1769509847092,-261.497606,0.00019178,2]
[403725831,1769509847100,-387.105087,0.00019178,2]
[403725832,1769509847109,-151.0,0.00019178,2]
[403725834,1769509847118,-261.497606,0.00019178,2]
[403725836,1769509847127,-387.105087,0.00019178,2]
[403725838,1769509847136,-387.105087,0.00019178,2]
[403725840,1769509847145,-261.497606,0.00019178,2]
[403725842,1769509847154,-257.410572,0.00019178,2]
[403725844,1769509847164,-261.497606,0.00019178,2]
[403725845,1769509847173,-387.105087,0.00019178,2]
[403725847,1769509847183,-261.497606,0.00019178,2]
[403725849,1769509847193,-387.105087,0.00019178,2]
[403725851,1769509847202,-387.105087,0.00019178,2]
[403725853,1769509847211,-261.497606,0.00019178,2]
[403725855,1769509847221,-261.497606,0.00019178,2]
[403725857,1769509847230,-387.105087,0.00019178,2]
[403725858,1769509847239,-387.105087,0.00019178,2]
[403725860,1769509847249,-261.497606,0.00019178,2]
[403725862,1769509847258,-151.0,0.00019178,2]
[403725864,1769509847269,-161.862077,0.00019178,2]
[403725866,1769509847279,-387.105087,0.00019178,2]
[403725868,1769509847288,-151.0,0.00019178,2]
[403725870,1769509847297,-239.660516,0.00019178,2]
[403725872,1769509847306,-194.6577276,0.00019178,2]
[403725873,1769509847315,-194.6577276,0.00019178,2]
[403725875,1769509847324,-194.6577276,0.00019178,2]
[403725877,1769509847334,-500.0,0.000192,2]
[403725879,1769509847343,-500.0,0.000192,2]
[403725881,1769509847353,-500.0,0.000192,2]
[403725883,1769509847362,-500.0,0.000192,2]
[403725885,1769509847371,-500.0,0.000192,2]
[403725886,1769509847380,-16820.15,0.000192,2]
[403725887,1769509847388,-190.876325,0.00019222,2]
[403725888,1769509847397,-151.0,0.00019222,2]
[403725889,1769509847406,-190.876325,0.00019222,2]
[403725890,1769509847415,-151.0,0.00019222,2]
[403725891,1769509847423,-190.876325,0.00019222,2]
[403725892,1769509847432,-151.0,0.00019222,2]
[403725893,1769509847441,-190.876325,0.00019222,2]
[403725894,1769509847450,-151.0,0.00019222,2]
[403725895,1769509847458,-151.0,0.00019222,2]
[403725896,1769509847467,-151.0,0.00019222,2]
[403725897,1769509847476,-151.0,0.00019222,2]
[403725898,1769509847484,-211.191352,0.00019222,2]
[403725899,1769509847494,-151.0,0.00019222,2]
[403725900,1769509847503,-151.0,0.00019222,2]
[403725901,1769509847512,-261.497606,0.00019222,2]
[403725902,1769509847521,-387.105087,0.00019222,2]
[403725903,1769509847530,-151.0,0.00019222,2]
[403725904,1769509847539,-261.497606,0.00019222,2]
[403725905,1769509847548,-387.105087,0.00019222,2]
[403725906,1769509847557,-261.497606,0.00019222,2]
[403725907,1769509847566,-387.105087,0.00019222,2]
[403725908,1769509847575,-261.497606,0.00019222,2]
[403725909,1769509847584,-387.105087,0.00019222,2]
[403725910,1769509847593,-303.10001603,0.00019278,2]
[403725911,1769509847601,-303.10001603,0.00019278,2]
[403725912,1769509847610,-157.69654565,0.00019288,30]
[403725913,1769509847619,-3612.8486594,0.00019316,2]
[403725914,1769509847627,-500.0,0.00019337,2]
[403725915,1769509847752,-500.0,0.00019337,2]
[403725916,1769509847762,-511.32015771,0.00019337,2]
[403725917,1769509847772,-500.0,0.00019337,2]
[403725918,1769509847783,-500.0,0.00019337,2]
[403725919,1769509847792,-1000.0,0.00019343,2]
[403725920,1769509847801,-492.0,0.00019343,2]
[403725921,1769509847811,-729.0,0.0001936,2]
[403725922,1769509847820,-729.0,0.0001936,2]
[403725923,1769509847829,-729.0,0.0001936,2]
[403725924,1769509847837,-729.0,0.0001936,2]
[403725925,1769509847846,-347.428255,0.0001936,2]
[403725926,1769509847855,-347.428255,0.0001936,2]
[403725927,1769509847863,-347.428255,0.0001936,2]
[403725928,1769509847872,-347.428255,0.0001936,2]
[403725929,1769509847881,-186.235497,0.0001936,2]
[403725930,1769509847890,-186.235497,0.0001936,2]
[403725931,1769509847900,-186.235497,0.0001936,2]
[403725932,1769509847909,-186.235497,0.0001936,2]
[403725933,1769509847918,-151.0,0.0001936,2]
[403725934,1769509847928,-1488.040989,0.0001936,2]
[403725935,1769509847937,-1488.040989,0.0001936,2]
[403725936,1769509847947,-1488.040989,0.0001936,2]
[403725937,1769509847955,-1488.040989,0.0001936,2]
[403725938,1769509847965,-491.197121,0.0001936,2]
[403725939,1769509847974,-491.197121,0.0001936,2]
[403725940,1769509847982,-491.197121,0.0001936,2]
[403725941,1769509847991,-491.197121,0.0001936,2]
[403725942,1769509848000,-154.22929,0.0001936,2]
[403725943,1769509848009,-154.22929,0.0001936,2]
[403725944,1769509848018,-154.22929,0.0001936,2]
[403725945,1769509848026,-154.22929,0.0001936,2]
[403725946,1769509848035,-190.922185,0.0001936,2]
[403725947,1769509848044,-190.922185,0.0001936,2]
[403725948,1769509848052,-190.922185,0.0001936,2]
[403725950,1769509848061,-190.922185,0.0001936,2]
[403725951,1769509848071,-151.0,0.0001936,2]
[403725952,1769509848079,-151.0,0.0001936,2]
[403725953,1769509848089,-264.10612,0.0001936,2]
[403725955,1769509848099,-200.37656408,0.0001936,2]
[403725956,1769509848108,-789.365747,0.0001936,2]
[403725958,1769509848117,-161.759019,0.0001936,2]
[403725959,1769509848126,-789.365747,0.0001936,2]
[403725961,1769509848135,-789.365747,0.0001936,2]
[403725963,1769509848145,-789.365747,0.0001936,2]
[403725965,1769509848154,-8606.040944,0.00019397,7]
[403725967,1769509848163,-1031.74395,0.00019397,7]
[403725969,1769509848172,-963.778489,0.00019397,7]
[403725971,1769509848181,-168.0,0.00019408,2]
[403725973,1769509848192,-1775.766818,0.00019467,2]
[403725975,1769509848201,-1775.766818,0.00019467,2]
[403725977,1769509848211,-1775.766818,0.00019467,2]
[403725979,1769509848220,-1775.766818,0.00019467,2]
[403725981,1769509848229,-151.0,0.00019467,2]
[403725983,1769509848238,-235.000123,0.00019467,2]
[403725985,1769509848247,-303.10001603,0.00019467,2]
[403725987,1769509848256,-303.10001603,0.00019467,2]
[403725989,1769509848266,-500.0,0.00019474,2]
[403725991,1769509848275,-500.0,0.00019474,2]
[403725993,1769509848284,-500.0,0.00019474,2]
[403725995,1769509848294,-500.0,0.00019474,2]
[403725997,1769509848303,-160.0,0.00019524,2]
[403725999,1769509848311,-234.876543,0.00019548,2]
[403726001,1769509848320,-234.857749,0.00019548,2]
[403726003,1769509848329,-234.857749,0.00019548,2]
[403726005,1769509848339,-234.857749,0.00019548,2]
[403726007,1769509848348,-234.857749,0.00019548,2]
[403726009,1769509848361,-151.0,0.00019548,2]
[403726011,1769509848370,-151.0,0.00019548,2]
[403726013,1769509848379,-151.0,0.00019548,2]
[403726015,1769509848387,-151.0,0.00019548,2]
[403726017,1769509848396,-151.0,0.00019548,2]
[403726019,1769509848406,-151.0,0.00019548,2]
[403726020,1769509848416,-151.0,0.00019548,2]
[403726023,1769509848425,-151.0,0.00019548,2]
[403726024,1769509848434,-182.048064,0.00019548,2]
[403726026,1769509848443,-182.048064,0.00019548,2]
[403726028,1769509848453,-182.048064,0.00019548,2]
[403726031,1769509848462,-182.048064,0.00019548,2]
[403726032,1769509848473,-507.9828,0.00019589,3]
[403726034,1769509848483,-160.0,0.00019599,2]
[403726036,1769509848492,-200.0,0.00019599,2]
[403726038,1769509848501,-187.598943,0.000196,7]
[403726040,1769509848511,-175.976057,0.000196,7]
[403726042,1769509848520,-39642.884236,0.000196,7]
[403726044,1769509848529,-10317.439498,0.000196,7]
[403726046,1769509848538,-3175.6,0.000196,2]
[403726048,1769509848547,-190.876325,0.000196,2]
[403726050,1769509848555,-151.0,0.000196,2]
[403726052,1769509848565,-190.876325,0.000196,2]
[403726054,1769509848574,-151.0,0.000196,2]
[403726056,1769509848583,-190.876325,0.000196,2]
[403726058,1769509848593,-151.0,0.000196,2]
[403726060,1769509848602,-190.876325,0.000196,2]
[403726062,1769509848612,-151.0,0.000196,2]
[403726064,1769509848621,-151.0,0.000196,2]
[403726066,1769509848630,-151.0,0.000196,2]
[403726068,1769509848640,-151.0,0.000196,2]
[403726070,1769509848649,-153.402217,0.000196,2]
[403726072,1769509848658,-151.0,0.000196,2]
[403726074,1769509848667,-151.0,0.000196,2]
[403726076,1769509848676,-228.790219,0.000196,2]
[403726078,1769509848685,-228.790219,0.000196,2]
[403726080,1769509848694,-228.790219,0.000196,2]
[403726082,1769509848703,-180.027684,0.000196,2]
[403726084,1769509848713,-228.790219,0.000196,2]
[403726086,1769509848723,-180.027684,0.000196,2]
[403726088,1769509848733,-180.027684,0.000196,2]
[403726090,1769509848743,-180.027684,0.000196,2]
[403726092,1769509848754,-151.0,0.000196,2]
[403726094,1769509848763,-208.394871,0.000196,2]
[403726096,1769509848772,-1435.484562,0.000196,2]
[403726098,1769509848781,-1435.484562,0.000196,2]
[403726100,1769509848791,-1435.484562,0.000196,2]
[403726102,1769509848801,-1435.484562,0.000196,2]
[403726104,1769509848809,-259.504741,0.000196,2]
[403726106,1769509848820,-259.504741,0.000196,2]
[403726108,1769509848829,-259.504741,0.000196,2]
[403726110,1769509848839,-259.504741,0.000196,2]
[403726112,1769509848848,-522.123162,0.000196,2]
[403726114,1769509848857,-522.123162,0.000196,2]
[403726116,1769509848867,-522.123162,0.000196,2]
[403726118,1769509848876,-522.123162,0.000196,2]
[403726120,1769509848885,-151.0,0.000196,2]
[403726122,1769509848894,-151.0,0.000196,2]
[403726124,1769509848903,-151.0,0.000196,2]
[403726126,1769509848912,-151.0,0.000196,2]
[403726128,1769509848922,-364.318764,0.000196,2]
[403726130,1769509848930,-364.318764,0.000196,2]
[403726132,1769509848939,-364.318764,0.000196,2]
[403726134,1769509848950,-364.318764,0.000196,2]
[403726136,1769509848959,-8624.357911,0.000196,2]
[403726138,1769509848967,-8624.357911,0.000196,2]
[403726140,1769509848976,-8624.357911,0.000196,2]
[403726142,1769509848986,-8624.357911,0.000196,2]
[403726144,1769509848995,-151.0,0.000196,2]
[403726146,1769509849003,-299.641432,0.000196,2]
[403726148,1769509849013,-151.782866,0.000196,2]
[403726150,1769509849022,-151.0,0.000196,2]
[403726152,1769509849032,-151.0,0.000196,2]
[403726154,1769509849041,-151.0,0.000196,2]
[403726156,1769509849051,-151.0,0.000196,2]
[403726158,1769509849060,-151.0,0.000196,2]
[403726160,1769509849069,-252.79465,0.000196,2]
[403726162,1769509849079,-151.0,0.000196,2]
[403726164,1769509849088,-230.007319,0.000196,2]
[403726166,1769509849098,-725.961314,0.000196,2]
[403726168,1769509849107,-230.007319,0.000196,2]
[403726170,1769509849117,-725.961314,0.000196,2]
[403726172,1769509849127,-230.007319,0.000196,2]
[403726174,1769509849136,-725.961314,0.000196,2]
[403726176,1769509849146,-230.007319,0.000196,2]
[403726178,1769509849156,-725.961314,0.000196,2]
[403726180,1769509849166,-566408.88803222,0.000196,2]
[403726195,1769509849300,-2538.44115726,0.000196,2]
[403726228,1769509849610,-3e-08,0.00015892,2]
[403726231,1769509849625,-249.99999997,0.00015892,2]
[403726233,1769509849634,-89.8381457,0.00015892,2]
[403726236,1769509849649,-160.1618543,0.00015892,2]
[403726238,1769509849658,-151.0,0.00015892,2]
[403726240,1769509849666,-250.0,0.00015892,2]
[403726242,1769509849675,-812.891426,0.00019178,2]
[403726244,1769509849685,-812.891426,0.00019178,2]
[403726245,1769509849694,-812.891426,0.00019178,2]
[403726248,1769509849704,-2135.23250683,0.000196,2]
[403726259,1769509849813,-151.0,0.00019178,2]
[403726261,1769509849823,-151.0,0.00019178,2]
[403726263,1769509849833,-812.891426,0.00019178,2]
[403726265,1769509849842,-812.891426,0.00019178,2]
[403726267,1769509849851,-151.0,0.00019178,2]
[403726269,1769509849860,-90.7352217,0.00019178,2]
[403726456,1769510026198,317.21757088,0.00035025,120]
[403726457,1769510076919,-5000.0,0.00012064,2]
[403726458,1769510086921,-300.0,0.00012186,2]
[403726459,1769510101259,300.0,0.00012186,2]
[403726460,1769510102235,300.0,0.00012186,2]
[403726461,1769510102432,300.0,0.00012186,2]
[403726462,1769510104167,300.0,0.00012186,2]
[403726463,1769510104579,1200.0,0.00012186,2]
[403726464,1769510112411,-500.0,0.00012187,2]
[403726465,1769510112440,-500.0,0.00012187,2]
[403726466,1769510112472,-500.0,0.00012187,2]
[403726467,1769510112500,-500.0,0.00012187,2]
[403726468,1769510112530,-500.0,0.00012187,2]
[403726469,1769510112558,-500.0,0.00012187,2]
[403726470,1769510112589,-500.0,0.00012187,2]
[403726471,1769510112622,-500.0,0.00012187,2]
[403726472,1769510112648,-174.00166504,0.00012187,2]
[403726473,1769510112681,-500.0,0.00012187,2]
[403726474,1769510112711,-152.00666992,0.00012187,2]
[403726475,1769510112885,-347.99333008,0.00012187,2]
[403726476,1769510112912,-500.0,0.00012187,2]
[403726477,1769510112943,-500.0,0.00012187,2]
[403726478,1769510112971,-500.0,0.00012187,2]
[403726479,1769510112998,-500.0,0.00012187,2]
[403726480,1769510113027,-500.0,0.00012187,2]
[403726481,1769510113249,-640.95484444,0.00012187,2]
[403726482,1769510113278,-500.0,0.00012187,2]
[403726483,1769510113306,-500.0,0.00012187,2]
[403726484,1769510113336,-500.0,0.00012187,2]
[403726485,1769510116486,-500.0,0.00012187,2]
[403726486,1769510116513,-500.0,0.00012187,2]
[403726487,1769510116541,-500.0,0.00012187,2]
[403726488,1769510116571,-500.0,0.00012187,2]
[403726489,1769510116600,-500.0,0.00012187,2]
[403726490,1769510116630,-500.0,0.00012187,2]
[403726491,1769510116658,-500.0,0.00012187,2]
[403726492,1769510116687,-500.0,0.00012187,2]
[403726493,1769510116718,-500.0,0.00012187,2]
[403726494,1769510116746,-500.0,0.00012187,2]
[403726495,1769510120366,-500.0,0.00012187,2]
[403726496,1769510120394,-500.0,0.00012187,2]
[403726497,1769510120428,-500.0,0.00012187,2]
[403726498,1769510120457,-593.18132865,0.00012187,2]
[403726499,1769510120490,-500.0,0.00012187,2]
[403726500,1769510120519,-500.0,0.00012187,2]
[403726501,1769510120547,-500.0,0.00012187,2]
[403726502,1769510120574,-553.54705774,0.00012187,2]
[403726503,1769510120602,-500.0,0.00012187,2]
[403726504,1769510120630,-206.55322722,0.00012187,2]
[403726505,1769510162359,300.0,0.00012186,2]
[403726506,1769510162982,300.0,0.00012186,2]
[403726507,1769510177790,-293.44677278,0.00012187,2]
[403726508,1769510177820,-500.0,0.00012187,2]
[403726509,1769510177849,-500.0,0.00012187,2]
[403726510,1769510177878,-215.67812955,0.00012187,2]
[403726511,1769510177912,-500.0,0.00012187,2]
[403726512,1769510177945,-499.99999999,0.00012187,2]
[403726513,1769510177977,-500.0,0.00012187,2]
[403726514,1769510178007,-500.0,0.00012187,2]
[403726515,1769510178034,-500.0,0.00012187,2]
[403726516,1769510178061,-500.0,0.00012187,2]
[403726517,1769510178091,-481.76019536,0.00012187,2]
[403726518,1769510178324,-18.23980464,0.00012187,2]
[403726519,1769510178354,-500.0,0.00012187,2]
[403726520,1769510178384,-500.0,0.00012187,2]
[403726521,1769510178413,-500.0,0.00012187,2]
[403726522,1769510178444,-179.98723212,0.00012187,2]
[403726523,1769510178473,-460.31521593,0.00012187,2]
[403726524,1769510178503,-500.0,0.00012187,2]
[403726525,1769510178530,-455.11261891,0.00012187,2]
[403726526,1769510178556,-500.0,0.00012187,2]
[403726527,1769510178585,-500.0,0.00012187,2]
[403726528,1769510178615,-500.0,0.00012187,2]
[403726529,1769510178645,-300.0,0.00012187,2]
[403726530,1769510189380,-500.0,0.00012187,2]
[403726531,1769510189409,-500.00000001,0.00012187,2]
[403726532,1769510189442,-500.0,0.00012187,2]
[403726533,1769510189476,-500.0,0.00012187,2]
[403726534,1769510189504,-500.0,0.00012187,2]
[403726535,1769510189533,-500.0,0.00012187,2]
[403726536,1769510189564,-500.0,0.00012187,2]
[403726537,1769510189601,-500.0,0.00012187,2]
[403726538,1769510189635,-500.0,0.00012187,2]
[403726539,1769510189663,-500.0,0.00012187,2]
[403726541,1769510221971,500.0,0.00012186,2]
[403726542,1769510222000,500.0,0.00012186,2]
[403726543,1769510222031,500.0,0.00012186,2]
[403726544,1769510222056,500.0,0.00012186,2]
[403726545,1769510222096,500.0,0.00012186,2]
[403726546,1769510222132,237.8838716,0.00012186,2]
[403726547,1769510222162,500.0,0.00012186,2]
[403726548,1769510222190,231.99497161,0.00012186,2]
[403726549,1769510222220,500.0,0.00012186,2]
[403726550,1769510222249,500.0,0.00012186,2]
[403726551,1769510222277,500.0,0.00012186,2]
[403726552,1769510222306,500.0,0.00012186,2]
[403726553,1769510222339,500.0,0.00012186,2]
[403726554,1769510222369,500.0,0.00012186,2]
[403726555,1769510222398,500.0,0.00012186,2]
[403726556,1769510222426,500.0,0.00012186,2]
[403726557,1769510222452,500.0,0.00012186,2]
[403726558,1769510222479,500.0,0.00012186,2]
[403726559,1769510222505,500.0,0.00012186,2]
[403726560,1769510222532,500.0,0.00012186,2]
[403726561,1769510222563,500.0,0.00012186,2]
[403726562,1769510222593,30.13115679,0.00012186,2]
[403726563,1769510227178,-300.0,0.00012186,2]
[403726564,1769510227210,-469.86884321,0.00012186,2]
[403726565,1769510227239,-209.15522837,0.00012186,2]
[403726566,1769510227269,-500.0,0.00012186,2]
[403726567,1769510227300,-500.0,0.00012186,2]
[403726568,1769510227329,-500.0,0.00012186,2]
[403726569,1769510227358,-579.31813286,0.00012186,2]
[403726570,1769510227391,-500.0,0.00012186,2]
[403726571,1769510227421,-500.0,0.00012186,2]
[403726572,1769510227450,-500.0,0.00012186,2]
[403726573,1769510227480,-383.32559112,0.00012186,2]
[403726574,1769510229855,500.0,0.00035025,120]
[403726575,1769510271259,414.60157911,0.00034941,120]
[403726579,1769510422767,-5000.0,0.00012064,2]
[403726580,1769510433786,-590.0,0.00012064,2]
[403726581,1769510433815,-298.0675623,0.00012187,2]
[403726582,1769510433844,-450.7126308,0.00012187,2]
[403726583,1769510433872,-322.12891237,0.00012187,2]
[403726584,1769510433903,-1200.0,0.00012427,2]
[403726585,1769510433931,-300.0,0.00012428,2]
[403726586,1769510433960,-300.0,0.00012428,2]
[403726587,1769510433993,-500.0,0.00012429,2]
[403726588,1769510434023,-500.0,0.00012429,2]
[403726589,1769510434052,-500.0,0.00012429,2]
[403726593,1769510634420,-477.74195709,0.00011524,2]
[403726594,1769510637075,-281.83220911,0.00011524,2]
[403726595,1769510639246,-199.9321529,0.00011524,2]
[403726596,1769510641506,-153.56290295,0.00011524,2]
[403726597,1769510645573,-351.80413804,0.00011524,2]
[403726598,1769510648262,-292.33113197,0.00011524,2]
[403726599,1769510651533,-259.16901261,0.00011524,2]
[403726600,1769510654401,-280.03620124,0.00011524,2]
[403726601,1769510657137,-243.40344553,0.00011524,2]
[403726602,1769510668212,-177.13169756,0.00011409,2]
[403726603,1769510670970,-283.69780471,0.00011409,2]
[403726604,1769510672492,-343.77623692,0.00011409,2]
[403726605,1769510674026,-207.70465177,0.00011409,2]
[403726606,1769510676305,-337.18741706,0.00011409,2]
[403726607,1769510677731,-367.28380367,0.00011409,2]
[403726608,1769510680613,-228.80881706,0.00011409,2]
[403726609,1769510682241,-464.8537122,0.00011409,2]
[403726610,1769510684992,-312.56473044,0.00011409,2]
[403726611,1769510687153,-342.53254121,0.00011409,2]
[403726612,1769510688704,-152.63050372,0.00011409,2]
[403726613,1769510691609,-884.83300696,0.00011409,2]
[403726614,1769510693683,-290.88326416,0.00011409,2]
[403726615,1769510695743,-220.38479306,0.00011409,2]
[403726616,1769510741115,-198.10326589,0.00011409,2]
[403726619,1769510775816,-187.62375361,0.00011409,2]
[403726620,1769510775846,-336.14970485,0.00011467,2]
[403726621,1769510775875,-2460.18684856,0.00011524,2]
[403726622,1769510775905,-396.4332898,0.0001164,2]
[403726623,1769510775934,-300.0,0.0001219,2]
[403726624,1769510777062,-5866.80657898,0.00012191,2]
[403726625,1769510781670,-300.0,0.00011112,2]
[403726626,1769510781698,-2546.69308068,0.00012191,2]
[403726627,1769510781731,-4306.62383864,0.00012191,2]
[403726628,1769510781841,-500.0,0.00012427,2]
[403726629,1769510781870,-500.0,0.00012427,2]
[403726630,1769510781899,-500.0,0.00012427,2]
[403726631,1769510781928,-500.0,0.00012427,2]
[403726632,1769510781959,-500.0,0.00012427,2]
[403726633,1769510781988,-500.0,0.00012427,2]
[403726634,1769510782155,-500.0,0.00012427,2]
[403726635,1769510782189,-500.0,0.00012427,2]
[403726636,1769510782219,-177.93181329,0.00012427,2]
[403726637,1769510782248,-522.33256623,0.00012427,2]
[403726638,1769510782276,-99.48124096,0.00012427,2]
[403726639,1769510782377,-400.51875904,0.00012427,2]
[403726640,1769510782405,-500.0,0.00012427,2]
[403726641,1769510782433,-239.19350569,0.00012427,2]
[403726642,1769510782463,-500.0,0.00012427,2]
[403726643,1769510782494,-500.0,0.00012427,2]
[403726644,1769510782522,-500.0,0.00012427,2]
[403726645,1769510782552,-500.0,0.00012427,2]
[403726646,1769510782580,-500.0,0.00012427,2]
[403726647,1769510782608,-500.0,0.00012427,2]
[403726648,1769510782638,-500.0,0.00012427,2]
[403726649,1769510782666,-220.58547054,0.00012427,2]
[403726650,1769510782729,-279.41452946,0.00012427,2]
[403726651,1769510782758,-500.0,0.00012427,2]
[403726652,1769510782787,-500.0,0.00012427,2]
[403726653,1769510782816,-500.0,0.00012427,2]
[403726654,1769510782845,-631.62734444,0.00012427,2]
[403726655,1769510782874,-500.0,0.00012427,2]
[403726656,1769510782902,-500.0,0.00012427,2]
[403726657,1769510782932,-500.0,0.00012427,2]
[403726658,1769510782962,-500.0,0.00012427,2]
[403726659,1769510782992,-500.0,0.00012427,2]
[403726660,1769510783598,-179.9332885,0.00012427,2]
[403726661,1769510783616,-320.0667115,0.00012427,2]
[403726662,1769510783626,-179.9332885,0.00012427,2]
[403726663,1769510783639,-177.9262522,0.00012427,2]
[403726664,1769510790054,-142.1404593,0.00012427,2]
[403726665,1769510790084,-500.0,0.00012427,2]
[403726666,1769510790114,-500.0,0.00012427,2]
[403726667,1769510790148,-500.0,0.00012427,2]
[403726668,1769510790179,-500.0,0.00012427,2]
[403726669,1769510790210,-500.0,0.00012427,2]
[403726670,1769510790240,-500.0,0.00012427,2]
[403726671,1769510790271,-500.0,0.00012427,2]
[403726672,1769510790302,-500.0,0.00012427,2]
[403726673,1769510790332,-500.0,0.00012427,2]
[403726674,1769510790369,-156.02281411,0.00012427,2]
[403726675,1769510790493,-403.68345318,0.00012427,2]
[403726676,1769510790523,-500.0,0.00012427,2]
[403726677,1769510790553,-500.0,0.00012427,2]
[403726678,1769510790583,-500.0,0.00012427,2]
[403726679,1769510790613,-500.0,0.00012427,2]
[403726680,1769510790643,-500.0,0.00012427,2]
[403726681,1769510790675,-500.0,0.00012427,2]
[403726682,1769510790705,-500.0,0.00012427,2]